[Event "WCCC G12 2019"]
[Site "Weifang"]
[Date "2019.08.30"]
[Round "9.2"]
[White "Mikheeva, Galina"]
[Black "Huang, Qianyi"]
[Result "1-0"]
[ECO "C02"]
[WhiteElo "1952"]
[BlackElo "1247"]
[Annotator "NA"]
[PlyCount "73"]
[EventDate "2019.08.21"]
[EventType "swiss"]
[EventCountry "CHN"]
[SourceTitle "playchess.com"]
[Source "ChessBase"]
[SourceQuality "1"]
[TimeControl "40/5400+30:1800+30"]

1. e4 {[%emt 1:30:30]} c5 {[%emt 1:30:30]} 2. Nf3 {[%emt 0:00:30]} e6 {[%emt 0:00:30]} 3. c3 {[%emt 0:00:30]} Nc6 {[%emt 0:00:30]} 4. d4 {[%emt 0:00:30]} d5 {[%emt 0:00:30]} 5. e5 {[%emt 0:00:30]} Qb6 {[%emt 0:00:30]} 6. a3 {[%emt 0:00:30]} Bd7 {[%emt 0:00:30]} 7. b4 {[%emt 0:00:30]} cxb4 {[%emt 0:00:30]} 8. cxb4 {[%emt 0:00:30]} a6 {[%emt 0:00:30]} 9. Be2 {[%emt 0:00:30]} Be7 {[%emt 0:00:30]} 10. O-O {[%emt 0:00:30]} h5 {[%emt 0:00:30]} 11. Nc3 {[%emt 0:00:30]} Na7 {[%emt 0:00:30]} 12. Be3 {[%emt 0:00:30]} Nb5 {[%emt 0:00:30]} 13. Na4 {[%emt 0:00:30]} Qd8 {[%emt 0:00:30]} 14. Qb3 {[%emt 0:00:30]} b6 {[%emt 0:00:30]} 15. Nb2 {[%emt 0:00:30]} g5 {[%emt 0:00:30]} 16. a4 {[%emt 0:00:30]} Nc7 {[%emt 0:00:30]} 17. Rac1 {[%emt 0:00:30]} g4 {[%emt 0:00:30]} 18. Ne1 {[%emt 0:00:30]} Nh6 {[%emt 0:00:30]} 19. Bxh6 {[%emt 0:00:30]} Rxh6 {[%emt 0:00:30]} 20. f3 {[%emt 0:00:30]} Rg6 {[%emt 0:00:30]} 21. fxg4 {[%emt 0:00:30]} hxg4 {[%emt 0:00:30]} 22. Ned3 {[%emt 0:00:30]} Kf8 {[%emt 0:00:30]} 23. Nf4 {[%emt 0:00:30]} Rg5 {[%emt 0:00:30]} 24. Qc2 {[%emt 0:00:30]} Kg7 {[%emt 0:00:30]} 25. Qxc7 {[%emt 0:00:30]} Qe8 {[%emt 0:00:30]} 26. Qc3 {[%emt 0:00:30]} Qh8 {[%emt 0:00:30]} 27. Qg3 {[%emt 0:00:30]} Bxb4 {[%emt 0:00:30]} 28. h4 {[%emt 0:00:30]} Rf5 {[%emt 0:00:30]} 29. Bxg4 {[%emt 0:00:30]} Kf8 {[%emt 0:00:30]} 30. Bxf5 {[%emt 0:00:30]} exf5 {[%emt 0:00:30]} 31. Rc7 {[%emt 0:00:30]} Ke8 {[%emt 0:00:30]} 32. Nxd5 {[%emt 0:00:30]} Be7 {[%emt 0:00:30]} 33. Nxe7 {[%emt 0:00:30]} Kxe7 {[%emt 0:00:30]} 34. Qg5+ {[%emt 0:00:30]} Ke8 {[%emt 0:00:30]} 35. Nc4 {[%emt 0:00:30]} Kf8 {[%emt 0:00:30]} 36. Rxd7 {[%emt 0:00:30]} Re8 {[%emt 0:00:30]} 37. Rxf5 {[%emt 0:00:30]} 1-0

[Event "WCCC G12 2019"]
[Site "Weifang"]
[Date "2019.08.30"]
[Round "9.3"]
[White "Savitha Shri B"]
[Black "Nurmanova, Alua"]
[Result "0-1"]
[ECO "B84"]
[WhiteElo "2010"]
[BlackElo "1850"]
[Annotator "NA"]
[PlyCount "102"]
[EventDate "2019.08.21"]
[EventType "swiss"]
[EventCountry "CHN"]
[SourceTitle "playchess.com"]
[Source "ChessBase"]
[SourceQuality "1"]
[TimeControl "40/5400+30:1800+30"]

1. e4 {[%emt 1:30:30]} c5 {[%emt 1:30:30]} 2. Nf3 {[%emt 0:00:30]} d6 {[%emt 0:00:30]} 3. d4 {[%emt 0:00:30]} cxd4 {[%emt 0:00:30]} 4. Nxd4 {[%emt 0:00:30]} Nf6 {[%emt 0:00:30]} 5. Nc3 {[%emt 0:00:30]} a6 {[%emt 0:00:30]} 6. Be3 {[%emt 0:00:30]} e6 {[%emt 0:00:30]} 7. Be2 {[%emt 0:00:30]} Qc7 {[%emt 0:00:30]} 8. O-O {[%emt 0:00:30]} b5 {[%emt 0:00:30]} 9. Bf3 {[%emt 0:00:30]} Bb7 {[%emt 0:00:30]} 10. a3 {[%emt 0:00:30]} Be7 {[%emt 0:00:30]} 11. Qe2 {[%emt 0:00:30]} Nbd7 {[%emt 0:00:30]} 12. g3 {[%emt 0:00:30]} Ne5 {[%emt 0:00:30]} 13. Bg2 {[%emt 0:00:30]} O-O {[%emt 0:00:30]} 14. Rad1 {[%emt 0:00:30]} Nc4 {[%emt 0:00:30]} 15. Bc1 {[%emt 0:00:30]} Nxa3 {[%emt 0:00:30]} 16. f4 {[%emt 0:00:30]} Nc4 {[%emt 0:00:30]} 17. b3 {[%emt 0:00:30]} Na5 {[%emt 0:00:30]} 18. Rd3 {[%emt 0:00:30]} Nc6 {[%emt 0:00:30]} 19. Nf3 {[%emt 0:00:30]} Nb4 {[%emt 0:00:30]} 20. Bd2 {[%emt 0:00:30]} Nxd3 {[%emt 0:00:30]} 21. cxd3 {[%emt 0:00:30]} Rac8 {[%emt 0:00:30]} 22. h3 {[%emt 0:00:30]} b4 {[%emt 0:00:30]} 23. Nd1 {[%emt 0:00:30]} Rfe8 {[%emt 0:00:30]} 24. Ne3 {[%emt 0:00:30]} a5 {[%emt 0:00:30]} 25. g4 {[%emt 0:00:30]} e5 {[%emt 0:00:30]} 26. Nf5 {[%emt 0:00:30]} Qc2 {[%emt 0:00:30]} 27. fxe5 {[%emt 0:00:30]} dxe5 {[%emt 0:00:30]} 28. Kh1 {[%emt 0:00:30]} Bf8 {[%emt 0:00:30]} 29. Ra1 {[%emt 0:00:30]} Ba6 {[%emt 0:00:30]} 30. Bf1 {[%emt 0:00:30]} Rc5 {[%emt 0:00:30]} 31. Qe3 {[%emt 0:00:30]} Qb2 {[%emt 0:00:30]} 32. Re1 {[%emt 0:00:30]} Rc6 {[%emt 0:00:30]} 33. Qg5 {[%emt 0:00:30]} Kh8 {[%emt 0:00:30]} 34. Ne3 {[%emt 0:00:30]} Rc5 {[%emt 0:00:30]} 35. Qh4 {[%emt 0:00:30]} Rc6 {[%emt 0:00:30]} 36. Qg5 {[%emt 0:00:30]} Rc5 {[%emt 0:00:30]} 37. Qh4 {[%emt 0:00:30]} Rc6 {[%emt 0:00:30]} 38. Qg5 {[%emt 0:00:30]} Rc5 {[%emt 0:00:30]} 39. Qh4 {[%emt 0:00:30]} Kg8 {[%emt 0:00:30]} 40. Nf5 {[%emt 0:00:30]} Rc6 {[%emt 0:00:30]} 41. Ne3 {[%emt 0:30:30]} Qxb3 {[%emt 0:30:30]} 42. g5 {[%emt 0:00:30]} Nd7 {[%emt 0:00:30]} 43. Be2 {[%emt 0:00:30]} Bxd3 {[%emt 0:00:30]} 44. Bd1 {[%emt 0:00:30]} Qa2 {[%emt 0:00:30]} 45. Qg4 {[%emt 0:00:30]} Nc5 {[%emt 0:00:30]} 46. Nf5 {[%emt 0:00:30]} b3 {[%emt 0:00:30]} 47. Bxb3 {[%emt 0:00:30]} Nxb3 {[%emt 0:00:30]} 48. Be3 {[%emt 0:00:30]} Qa4 {[%emt 0:00:30]} 49. Bf2 {[%emt 0:00:30]} Nc5 {[%emt 0:00:30]} 50. Ng3 {[%emt 0:00:30]} Qc2 {[%emt 0:00:30]} 51. Bg1 {[%emt 0:00:30]} a4 {[%emt 0:00:30]} 0-1

[Event "WCCC G12 2019"]
[Site "Weifang"]
[Date "2019.08.30"]
[Round "9.4"]
[White "Shvedova, Alexandra"]
[Black "Manko, Mariya"]
[Result "1-0"]
[ECO "B77"]
[WhiteElo "1932"]
[BlackElo "1895"]
[Annotator "NA"]
[PlyCount "73"]
[EventDate "2019.08.21"]
[EventType "swiss"]
[EventCountry "CHN"]
[SourceTitle "playchess.com"]
[Source "ChessBase"]
[SourceQuality "1"]
[TimeControl "40/5400+30:1800+30"]

1. e4 {[%emt 1:30:30]} c5 {[%emt 1:30:30]} 2. Nf3 {[%emt 0:00:30]} d6 {[%emt 0:00:30]} 3. d4 {[%emt 0:00:30]} cxd4 {[%emt 0:00:30]} 4. Nxd4 {[%emt 0:00:30]} Nf6 {[%emt 0:00:30]} 5. Nc3 {[%emt 0:00:30]} g6 {[%emt 0:00:30]} 6. Be3 {[%emt 0:00:30]} Bg7 {[%emt 0:00:30]} 7. f3 {[%emt 0:00:30]} O-O {[%emt 0:00:30]} 8. Qd2 {[%emt 0:00:30]} Nc6 {[%emt 0:00:30]} 9. Bc4 {[%emt 0:00:30]} Qa5 {[%emt 0:00:30]} 10. O-O-O {[%emt 0:00:30]} Nxd4 {[%emt 0:00:30]} 11. Bxd4 {[%emt 0:00:30]} Be6 {[%emt 0:00:30]} 12. Bb3 {[%emt 0:00:30]} b5 {[%emt 0:00:30]} 13. Kb1 {[%emt 0:00:30]} b4 {[%emt 0:00:30]} 14. Ne2 {[%emt 0:00:30]} Qb5 {[%emt 0:00:30]} 15. g4 {[%emt 0:00:30]} a5 {[%emt 0:00:30]} 16. g5 {[%emt 0:00:30]} Nh5 {[%emt 0:00:30]} 17. Bxg7 {[%emt 0:00:30]} Nxg7 {[%emt 0:00:30]} 18. Nd4 {[%emt 0:00:30]} Qd7 {[%emt 0:00:30]} 19. h4 {[%emt 0:00:30]} Nh5 {[%emt 0:00:30]} 20. Ne2 {[%emt 0:00:30]} a4 {[%emt 0:00:30]} 21. Bd5 {[%emt 0:00:30]} Bxd5 {[%emt 0:00:30]} 22. Qxd5 {[%emt 0:00:30]} Qe6 {[%emt 0:00:30]} 23. Nd4 {[%emt 0:00:30]} Qxd5 {[%emt 0:00:30]} 24. exd5 {[%emt 0:00:30]} f6 {[%emt 0:00:30]} 25. Rhe1 {[%emt 0:00:30]} fxg5 {[%emt 0:00:30]} 26. hxg5 {[%emt 0:00:30]} Rf7 {[%emt 0:00:30]} 27. Kc1 {[%emt 0:00:30]} Rc8 {[%emt 0:00:30]} 28. Nc6 {[%emt 0:00:30]} Rc7 {[%emt 0:00:30]} 29. Re3 {[%emt 0:00:30]} Nf4 {[%emt 0:00:30]} 30. Nxb4 {[%emt 0:00:30]} Nh3 {[%emt 0:00:30]} 31. Nc6 {[%emt 0:00:30]} Nxg5 {[%emt 0:00:30]} 32. Rf1 {[%emt 0:00:30]} e5 {[%emt 0:00:30]} 33. b4 {[%emt 0:00:30]} axb3 {[%emt 0:00:30]} 34. cxb3 {[%emt 0:00:30]} Nh3 {[%emt 0:00:30]} 35. Rc3 {[%emt 0:00:30]} Nf4 {[%emt 0:00:30]} 36. Kd2 {[%emt 0:00:30]} Nxd5 {[%emt 0:00:30]} 37. Re1 {[%emt 0:00:30]} 1-0

[Event "WCCC G12 2019"]
[Site "Weifang"]
[Date "2019.08.30"]
[Round "9.5"]
[White "Racasa, Antonella Berthe"]
[Black "Nguyen, Ha Khanh Linh"]
[Result "1-0"]
[ECO "A48"]
[WhiteElo "1380"]
[BlackElo "1500"]
[Annotator "NA"]
[PlyCount "103"]
[EventDate "2019.08.21"]
[EventType "swiss"]
[EventCountry "CHN"]
[SourceTitle "playchess.com"]
[Source "ChessBase"]
[SourceQuality "1"]
[TimeControl "40/5400+30:1800+30"]

1. d4 {[%emt 1:30:30]} d6 {[%emt 1:30:30]} 2. Bf4 {[%emt 0:00:30]} g6 {[%emt 0:00:30]} 3. e3 {[%emt 0:00:30]} Bg7 {[%emt 0:00:30]} 4. Nf3 {[%emt 0:00:30]} Nf6 {[%emt 0:00:30]} 5. h3 {[%emt 0:00:30]} c6 {[%emt 0:00:30]} 6. Nbd2 {[%emt 0:00:30]} O-O {[%emt 0:00:30]} 7. Be2 {[%emt 0:00:30]} Nbd7 {[%emt 0:00:30]} 8. O-O {[%emt 0:00:30]} a6 {[%emt 0:00:30]} 9. a4 {[%emt 0:00:30]} b6 {[%emt 0:00:30]} 10. c3 {[%emt 0:00:30]} Bb7 {[%emt 0:00:30]} 11. Bh2 {[%emt 0:00:30]} c5 {[%emt 0:00:30]} 12. b4 {[%emt 0:00:30]} Ne4 {[%emt 0:00:30]} 13. Nxe4 {[%emt 0:00:30]} Bxe4 {[%emt 0:00:30]} 14. Nd2 {[%emt 0:00:30]} Bb7 {[%emt 0:00:30]} 15. Bf3 {[%emt 0:00:30]} Qc7 {[%emt 0:00:30]} 16. Qb3 {[%emt 0:00:30]} Bxf3 {[%emt 0:00:30]} 17. Nxf3 {[%emt 0:00:30]} cxb4 {[%emt 0:00:30]} 18. cxb4 {[%emt 0:00:30]} Rac8 {[%emt 0:00:30]} 19. Qd3 {[%emt 0:00:30]} Qc4 {[%emt 0:00:30]} 20. Qd2 {[%emt 0:00:30]} Qc2 {[%emt 0:00:30]} 21. Rfc1 {[%emt 0:00:30]} Qxd2 {[%emt 0:00:30]} 22. Nxd2 {[%emt 0:00:30]} d5 {[%emt 0:00:30]} 23. Kf1 {[%emt 0:00:30]} e5 {[%emt 0:00:30]} 24. Nf3 {[%emt 0:00:30]} exd4 {[%emt 0:00:30]} 25. exd4 {[%emt 0:00:30]} Rc4 {[%emt 0:00:30]} 26. Rxc4 {[%emt 0:00:30]} dxc4 {[%emt 0:00:30]} 27. b5 {[%emt 0:00:30]} a5 {[%emt 0:00:30]} 28. Rc1 {[%emt 0:00:30]} Rc8 {[%emt 0:00:30]} 29. Ke2 {[%emt 0:00:30]} f6 {[%emt 0:00:30]} 30. Rc3 {[%emt 0:00:30]} Bf8 {[%emt 0:00:30]} 31. Nd2 {[%emt 0:00:30]} Re8+ {[%emt 0:00:30]} 32. Kd1 {[%emt 0:00:30]} Bb4 {[%emt 0:00:30]} 33. Rxc4 {[%emt 0:00:30]} Rd8 {[%emt 0:00:30]} 34. Bf4 {[%emt 0:00:30]} Kf7 {[%emt 0:00:30]} 35. Kc2 {[%emt 0:00:30]} g5 {[%emt 0:00:30]} 36. Be3 {[%emt 0:00:30]} h6 {[%emt 0:00:30]} 37. f4 {[%emt 0:00:30]} Re8 {[%emt 0:00:30]} 38. Kd3 {[%emt 0:00:30]} Rd8 {[%emt 0:00:30]} 39. Ke2 {[%emt 0:00:30]} Re8 {[%emt 0:00:30]} 40. Kf3 {[%emt 0:00:30]} Ke6 {[%emt 0:00:30]} 41. fxg5 {[%emt 0:30:30]} fxg5 {[%emt 0:30:30]} 42. Rc6+ {[%emt 0:00:30]} Kd5 {[%emt 0:00:30]} 43. Rxh6 {[%emt 0:00:30]} g4+ {[%emt 0:00:30]} 44. hxg4 {[%emt 0:00:30]} Rf8+ {[%emt 0:00:30]} 45. Ke2 {[%emt 0:00:30]} Nf6 {[%emt 0:00:30]} 46. Rg6 {[%emt 0:00:30]} Bxd2 {[%emt 0:00:30]} 47. Kxd2 {[%emt 0:00:30]} Kc4 {[%emt 0:00:30]} 48. g5 {[%emt 0:00:30]} Ne4+ {[%emt 0:00:30]} 49. Kc2 {[%emt 0:00:30]} Rb8 {[%emt 0:00:30]} 50. Re6 {[%emt 0:00:30]} Ng3 {[%emt 0:00:30]} 51. Bf4 {[%emt 0:00:30]} Rc8 {[%emt 0:00:30]} 52. Bxg3 {[%emt 0:00:30]} 1-0

[Event "WCCC G12 2019"]
[Site "Weifang"]
[Date "2019.08.30"]
[Round "9.6"]
[White "Wang, Xiyue"]
[Black "Tang, Zoey"]
[Result "1-0"]
[ECO "B86"]
[WhiteElo "1540"]
[BlackElo "1866"]
[Annotator "NA"]
[PlyCount "77"]
[EventDate "2019.08.21"]
[EventType "swiss"]
[EventCountry "CHN"]
[SourceTitle "playchess.com"]
[Source "ChessBase"]
[SourceQuality "1"]
[TimeControl "40/5400+30:1800+30"]

1. e4 {[%emt 1:30:30]} c5 {[%emt 1:30:30]} 2. Nf3 {[%emt 0:00:30]} d6 {[%emt 0:00:30]} 3. d4 {[%emt 0:00:30]} cxd4 {[%emt 0:00:30]} 4. Nxd4 {[%emt 0:00:30]} Nf6 {[%emt 0:00:30]} 5. Nc3 {[%emt 0:00:30]} a6 {[%emt 0:00:30]} 6. Bc4 {[%emt 0:00:30]} e6 {[%emt 0:00:30]} 7. O-O {[%emt 0:00:30]} Be7 {[%emt 0:00:30]} 8. Be3 {[%emt 0:00:30]} O-O {[%emt 0:00:30]} 9. Qf3 {[%emt 0:00:30]} Qc7 $11 {[%emt 0:00:30]} 10. Be2 {[%emt 0:00:30]} Nbd7 {[%emt 0:00:30]} 11. Qg3 {[%emt 0:00:30]} Kh8 {[%emt 0:00:30]} 12. Nb3 {[%emt 0:00:30]} b5 {[%emt 0:00:30]} 13. a3 {[%emt 0:00:30]} Bb7 {[%emt 0:00:30]} 14. f3 {[%emt 0:00:30]} Rac8 {[%emt 0:00:30]} 15. Rad1 {[%emt 0:00:30]} Ne5 {[%emt 0:00:30]} 16. Qf2 {[%emt 0:00:30]} Nfd7 {[%emt 0:00:30]} 17. Nd2 {[%emt 0:00:30]} f5 {[%emt 0:00:30]} 18. exf5 {[%emt 0:00:30]} Rxf5 {[%emt 0:00:30]} 19. f4 {[%emt 0:00:30]} Nc4 {[%emt 0:00:30]} 20. Nxc4 {[%emt 0:00:30]} bxc4 {[%emt 0:00:30]} 21. Bg4 {[%emt 0:00:30]} Rf6 {[%emt 0:00:30]} 22. Qe2 {[%emt 0:00:30]} Rg6 {[%emt 0:00:30]} 23. Rf2 {[%emt 0:00:30]} Qc6 {[%emt 0:00:30]} 24. Bf3 {[%emt 0:00:30]} d5 {[%emt 0:00:30]} 25. f5 {[%emt 0:00:30]} Rf6 {[%emt 0:00:30]} 26. Bg5 {[%emt 0:00:30]} Bc5 {[%emt 0:00:30]} 27. Bxf6 {[%emt 0:00:30]} Bxf2+ {[%emt 0:00:30]} 28. Kxf2 {[%emt 0:00:30]} Nxf6 {[%emt 0:00:30]} 29. Qxe6 {[%emt 0:00:30]} Qc5+ {[%emt 0:00:30]} 30. Qe3 {[%emt 0:00:30]} d4 {[%emt 0:00:30]} 31. Qxd4 {[%emt 0:00:30]} Qxf5 {[%emt 0:00:30]} 32. Rd2 {[%emt 0:00:30]} Rf8 {[%emt 0:00:30]} 33. Ke1 {[%emt 0:00:30]} Bxf3 {[%emt 0:00:30]} 34. gxf3 {[%emt 0:00:30]} Qxf3 {[%emt 0:00:30]} 35. Rf2 {[%emt 0:00:30]} Re8+ {[%emt 0:00:30]} 36. Kd2 {[%emt 0:00:30]} Qb7 {[%emt 0:00:30]} 37. Kc1 {[%emt 0:00:30]} Qh1+ {[%emt 0:00:30]} 38. Nd1 {[%emt 0:00:30]} Qe4 {[%emt 0:00:30]} 39. Qxe4 {[%emt 0:00:30]} 1-0

[Event "WCCC G12 2019"]
[Site "Weifang"]
[Date "2019.08.30"]
[Round "9.7"]
[White "Wang, Yuehan"]
[Black "Wang, Ellen"]
[Result "1/2-1/2"]
[ECO "B90"]
[WhiteElo "1600"]
[BlackElo "1867"]
[Annotator "NA"]
[PlyCount "131"]
[EventDate "2019.08.21"]
[EventType "swiss"]
[EventCountry "CHN"]
[SourceTitle "playchess.com"]
[Source "ChessBase"]
[SourceQuality "1"]
[TimeControl "40/5400+30:1800+30"]

1. e4 {[%emt 1:30:30]} c5 {[%emt 1:30:30]} 2. Nf3 {[%emt 0:00:30]} d6 {[%emt 0:00:30]} 3. d4 {[%emt 0:00:30]} cxd4 {[%emt 0:00:30]} 4. Nxd4 {[%emt 0:00:30]} Nf6 {[%emt 0:00:30]} 5. Nc3 {[%emt 0:00:30]} a6 {[%emt 0:00:30]} 6. f3 {[%emt 0:00:30]} e5 {[%emt 0:00:30]} 7. Nb3 {[%emt 0:00:30]} Be6 {[%emt 0:00:30]} 8. Be3 {[%emt 0:00:30]} Nbd7 {[%emt 0:00:30]} 9. g4 {[%emt 0:00:30]} b5 {[%emt 0:00:30]} 10. g5 {[%emt 0:00:30]} Nh5 {[%emt 0:00:30]} 11. Qd2 {[%emt 0:00:30]} Nb6 {[%emt 0:00:30]} 12. Nd5 {[%emt 0:00:30]} Nxd5 {[%emt 0:00:30]} 13. exd5 {[%emt 0:00:30]} Bd7 {[%emt 0:00:30]} 14. Na5 {[%emt 0:00:30]} Be7 {[%emt 0:00:30]} 15. O-O-O {[%emt 0:00:30]} O-O {[%emt 0:00:30]} 16. Bd3 {[%emt 0:00:30]} Rc8 {[%emt 0:00:30]} 17. Rhg1 {[%emt 0:00:30]} Qc7 {[%emt 0:00:30]} 18. Be4 {[%emt 0:00:30]} g6 {[%emt 0:00:30]} 19. Nc6 {[%emt 0:00:30]} Bxc6 {[%emt 0:00:30]} 20. dxc6 {[%emt 0:00:30]} Rfd8 {[%emt 0:00:30]} 21. Bd5 {[%emt 0:00:30]} Bf8 {[%emt 0:00:30]} 22. Qf2 {[%emt 0:00:30]} Re8 {[%emt 0:00:30]} 23. Rge1 {[%emt 0:00:30]} Bg7 {[%emt 0:00:30]} 24. Bb6 {[%emt 0:00:30]} Qe7 {[%emt 0:00:30]} 25. c7 {[%emt 0:00:30]} Qxg5+ {[%emt 0:00:30]} 26. Kb1 {[%emt 0:00:30]} Qe7 {[%emt 0:00:30]} 27. Bc6 {[%emt 0:00:30]} Rf8 {[%emt 0:00:30]} 28. Qd2 {[%emt 0:00:30]} Rxc7 {[%emt 0:00:30]} 29. Bxc7 {[%emt 0:00:30]} Qxc7 {[%emt 0:00:30]} 30. Qxd6 {[%emt 0:00:30]} Qa7 {[%emt 0:00:30]} 31. Qd7 {[%emt 0:00:30]} Qf2 {[%emt 0:00:30]} 32. Qd2 {[%emt 0:00:30]} Qb6 {[%emt 0:00:30]} 33. Be4 {[%emt 0:00:30]} Nf4 {[%emt 0:00:30]} 34. Qd6 {[%emt 0:00:30]} Qa7 {[%emt 0:00:30]} 35. Qc6 {[%emt 0:00:30]} Ne6 {[%emt 0:00:30]} 36. c3 {[%emt 0:00:30]} b4 {[%emt 0:00:30]} 37. cxb4 {[%emt 0:00:30]} Nd4 {[%emt 0:00:30]} 38. Qb7 {[%emt 0:00:30]} Qxb7 {[%emt 0:00:30]} 39. Bxb7 {[%emt 0:00:30]} Rb8 {[%emt 0:00:30]} 40. Bxa6 {[%emt 0:00:30]} Rxb4 {[%emt 0:00:30]} 41. Rf1 {[%emt 0:30:30]} f5 {[%emt 0:30:30]} 42. a3 {[%emt 0:00:30]} Rb6 {[%emt 0:00:30]} 43. Bc4+ {[%emt 0:00:30]} Kf8 {[%emt 0:00:30]} 44. b4 {[%emt 0:00:30]} Rc6 {[%emt 0:00:30]} 45. Rc1 {[%emt 0:00:30]} Bh6 {[%emt 0:00:30]} 46. Bd5 {[%emt 0:00:30]} Rxc1+ {[%emt 0:00:30]} 47. Rxc1 {[%emt 0:00:30]} Bxc1 {[%emt 0:00:30]} 48. Kxc1 {[%emt 0:00:30]} Ke7 {[%emt 0:00:30]} 49. a4 {[%emt 0:00:30]} Kd6 {[%emt 0:00:30]} 50. Ba8 {[%emt 0:00:30]} g5 {[%emt 0:00:30]} 51. Kd2 {[%emt 0:00:30]} h5 {[%emt 0:00:30]} 52. h3 {[%emt 0:00:30]} g4 {[%emt 0:00:30]} 53. fxg4 {[%emt 0:00:30]} fxg4 {[%emt 0:00:30]} 54. hxg4 {[%emt 0:00:30]} hxg4 {[%emt 0:00:30]} 55. Be4 {[%emt 0:00:30]} g3 {[%emt 0:00:30]} 56. Ke1 {[%emt 0:00:30]} g2 {[%emt 0:00:30]} 57. Kf2 {[%emt 0:00:30]} g1=Q+ {[%emt 0:00:30]} 58. Kxg1 {[%emt 0:00:30]} Ne2+ {[%emt 0:00:30]} 59. Kf2 {[%emt 0:00:30]} Nc3 {[%emt 0:00:30]} 60. Bc2 {[%emt 0:00:30]} Na2 {[%emt 0:00:30]} 61. b5 {[%emt 0:00:30]} Kc5 {[%emt 0:00:30]} 62. Ke3 {[%emt 0:00:30]} Nc3 {[%emt 0:00:30]} 63. Bb3 {[%emt 0:00:30]} Nxb5 {[%emt 0:00:30]} 64. Ke4 {[%emt 0:00:30]} Nc3+ {[%emt 0:00:30]} 65. Kxe5 {[%emt 0:00:30]} Nxa4 {[%emt 0:00:30]} 66. Bxa4 {[%emt 0:00:30]} 1/2-1/2

[Event "WCCC G12 2019"]
[Site "Weifang"]
[Date "2019.08.30"]
[Round "9.8"]
[White "Karmanova, Olga Dm."]
[Black "Zakirova, Aisha"]
[Result "1-0"]
[ECO "B25"]
[WhiteElo "1838"]
[BlackElo "1595"]
[Annotator "NA"]
[PlyCount "78"]
[EventDate "2019.08.21"]
[EventType "swiss"]
[EventCountry "CHN"]
[SourceTitle "playchess.com"]
[Source "ChessBase"]
[SourceQuality "1"]
[TimeControl "40/5400+30:1800+30"]

1. e4 {[%emt 1:30:30]} c5 {[%emt 1:30:30]} 2. Nc3 {[%emt 0:00:30]} d6 {[%emt 0:00:30]} 3. f4 {[%emt 0:00:30]} g6 {[%emt 0:00:30]} 4. Nf3 {[%emt 0:00:30]} Nc6 {[%emt 0:00:30]} 5. g3 {[%emt 0:00:30]} Bg7 {[%emt 0:00:30]} 6. Bg2 {[%emt 0:00:30]} Nf6 {[%emt 0:00:30]} 7. O-O {[%emt 0:00:30]} O-O {[%emt 0:00:30]} 8. d3 {[%emt 0:00:30]} a6 {[%emt 0:00:30]} 9. a4 {[%emt 0:00:30]} Rb8 {[%emt 0:00:30]} 10. h3 {[%emt 0:00:30]} b5 {[%emt 0:00:30]} 11. axb5 {[%emt 0:00:30]} axb5 {[%emt 0:00:30]} 12. Be3 {[%emt 0:00:30]} b4 $11 {[%emt 0:00:30]} 13. Ne2 {[%emt 0:00:30]} Bb7 {[%emt 0:00:30]} 14. g4 {[%emt 0:00:30]} c4 {[%emt 0:00:30]} 15. Ng3 {[%emt 0:00:30]} cxd3 {[%emt 0:00:30]} 16. cxd3 {[%emt 0:00:30]} Ra8 {[%emt 0:00:30]} 17. Qd2 {[%emt 0:00:30]} Ra5 {[%emt 0:00:30]} 18. d4 {[%emt 0:00:30]} Qa8 {[%emt 0:00:30]} 19. Rac1 {[%emt 0:00:30]} e6 {[%emt 0:00:30]} 20. Nh2 {[%emt 0:00:30]} Re8 {[%emt 0:00:30]} 21. g5 {[%emt 0:00:30]} Nd7 {[%emt 0:00:30]} 22. Ng4 {[%emt 0:00:30]} f5 {[%emt 0:00:30]} 23. gxf6 {[%emt 0:00:30]} Nxf6 {[%emt 0:00:30]} 24. Nxf6+ {[%emt 0:00:30]} Bxf6 {[%emt 0:00:30]} 25. e5 {[%emt 0:00:30]} Bh4 {[%emt 0:00:30]} 26. Ne4 {[%emt 0:00:30]} d5 {[%emt 0:00:30]} 27. Nd6 {[%emt 0:00:30]} Re7 {[%emt 0:00:30]} 28. Nxb7 {[%emt 0:00:30]} Qxb7 {[%emt 0:00:30]} 29. Qe2 {[%emt 0:00:30]} Re8 {[%emt 0:00:30]} 30. Qg4 {[%emt 0:00:30]} Bd8 {[%emt 0:00:30]} 31. f5 {[%emt 0:00:30]} exf5 {[%emt 0:00:30]} 32. Rxf5 {[%emt 0:00:30]} Bb6 {[%emt 0:00:30]} 33. Rf3 {[%emt 0:00:30]} Ba7 {[%emt 0:00:30]} 34. Kh1 {[%emt 0:00:30]} Qc8 {[%emt 0:00:30]} 35. Qf4 {[%emt 0:00:30]} Qd7 {[%emt 0:00:30]} 36. Rcf1 {[%emt 0:00:30]} Nd8 {[%emt 0:00:30]} 37. Qh6 {[%emt 0:00:30]} Ne6 {[%emt 0:00:30]} 38. h4 {[%emt 0:00:30]} Qg7 {[%emt 0:00:30]} 39. Bh3 {[%emt 0:00:30]} Nxd4 {[%emt 0:00:30]} 1-0

[Event "WCCC G12 2019"]
[Site "Weifang"]
[Date "2019.08.30"]
[Round "9.9"]
[White "Anudari Tsogdelger"]
[Black "Braeutigam, Katerina"]
[Result "1-0"]
[ECO "E12"]
[WhiteElo "1594"]
[BlackElo "1808"]
[Annotator "NA"]
[PlyCount "42"]
[EventDate "2019.08.21"]
[EventType "swiss"]
[EventCountry "CHN"]
[SourceTitle "playchess.com"]
[Source "ChessBase"]
[SourceQuality "1"]
[TimeControl "40/5400+30:1800+30"]

1. d4 {[%emt 1:30:30]} Nf6 {[%emt 1:30:30]} 2. c4 {[%emt 0:00:30]} e6 {[%emt 0:00:30]} 3. Nf3 {[%emt 0:00:30]} b6 {[%emt 0:00:30]} 4. Bf4 {[%emt 0:00:30]} Bb7 {[%emt 0:00:30]} 5. Nbd2 {[%emt 0:00:30]} Be7 {[%emt 0:00:30]} 6. Qc2 {[%emt 0:00:30]} d5 {[%emt 0:00:30]} 7. e3 {[%emt 0:00:30]} Nbd7 {[%emt 0:00:30]} 8. Rc1 {[%emt 0:00:30]} O-O $11 {[%emt 0:00:30]} 9. Bd3 {[%emt 0:00:30]} dxc4 {[%emt 0:00:30]} 10. Nxc4 {[%emt 0:00:30]} c5 {[%emt 0:00:30]} 11. e4 {[%emt 0:00:30]} cxd4 {[%emt 0:00:30]} 12. e5 {[%emt 0:00:30]} Nd5 {[%emt 0:00:30]} 13. Bxh7+ {[%emt 0:00:30]} Kh8 {[%emt 0:00:30]} 14. Bd2 {[%emt 0:00:30]} Nb4 {[%emt 0:00:30]} 15. Bxb4 {[%emt 0:00:30]} Bxb4+ {[%emt 0:00:30]} 16. Kf1 {[%emt 0:00:30]} Rc8 {[%emt 0:00:30]} 17. Qa4 {[%emt 0:00:30]} Kxh7 {[%emt 0:00:30]} 18. Qxb4 {[%emt 0:00:30]} Ba6 {[%emt 0:00:30]} 19. Ke2 {[%emt 0:00:30]} Qc7 {[%emt 0:00:30]} 20. b3 {[%emt 0:00:30]} Nxe5 {[%emt 0:00:30]} 21. Qa4 {[%emt 0:00:30]} d3+ {[%emt 0:00:30]} 1-0